Cogmind - Beta 15 @@@ ROGUE MODE // 2025.05.13 @ 16:02:05 Player: Peawet Result: Destroyed by T0-RV7(R) with Subdweller Laser Performance ------------- Evolutions (0) 0 Regions Visited (3) 600 Robots Destroyed (13) 65 Value Destroyed (414) 414 Prototype IDs (2) 40 Alien Tech Used (0) 0 Bonus (300) 300 TOTAL SCORE: 1419 Bonus ------- Follower Combat Kills 300 Cogmind --------- Core Integrity 0/250 Matter 379/400 Energy 250/250 System Corruption 0% Temperature Cool (6) Movement Walking (190) Ox1 Location -10/Subcaves Parts ------- > --- POWER (1) -------- Ion Engine > --- PROPULSION (2) --- Aluminum Leg Aluminum Leg > --- UTILITY (2) ------ Small Storage Unit Medium Matter Pod > --- WEAPON (2) ------- Slug Cannon Rocket Launcher > --- INVENTORY (8) ---- Aluminum Leg Aluminum Leg Subdweller Machine Gun Grenade Launcher Peak State ------------ > --- POWER ------------ Light Nuclear Core > --- PROPULSION ------- Aluminum Leg Aluminum Leg > --- UTILITY ---------- Small Storage Unit Medium Matter Pod > --- WEAPON ----------- Subdweller Machine Gun Slug Cannon > --- INVENTORY -------- Ion Engine Aluminum Leg Aluminum Leg Grenade Launcher Rocket Launcher Heavy Explosive Trap Heavy Explosive Trap [Rating: 13] Favorites ----------- Power Ion Engine Engine Ion Engine Power Core Light Nuclear Core Propulsion Aluminum Leg Leg Aluminum Leg Utility Small Storage Unit Storage Small Storage Unit Weapon Light Assault Rifle Energy Gun Small Laser Ballistic Gun Light Assault Rifle Ballistic Cannon Slug Cannon Launcher Rocket Launcher Special Weapon Mining Laser Build | -11 -10 -10 -10 ------- Run | Yrd Mat Min Sub Slots Evolved . | . . . . Power . | . . . . Propulsion . | . . . . Utility . | . . . . Weapon . | . . . . Parts Attached 17 | 5 1 5 6 Power 3 | 1 . 1 1 Engine 2 | 1 . . 1 Core 1 | . . 1 . Reactor . | . . . . Propulsion 4 | 2 . 1 1 Treads . | . . . . Leg 4 | 2 . 1 1 Wheel . | . . . . Hover . | . . . . Flight . | . . . . Utility 2 | . 1 1 . Device . | . . . . Storage 2 | . 1 1 . Processor . | . . . . Hackware . | . . . . Protection . | . . . . Artifact . | . . . . Weapon 8 | 2 . 2 4 Energy Gun 1 | 1 . . . Energy Cannon . | . . . . Ballistic Gun 3 | 1 . 1 1 Ballistic Cannon 1 | . . . 1 Launcher 2 | . . 1 1 Special Weapon 1 | . . . 1 Impact Weapon . | . . . . Slashing Weapon . | . . . . Piercing Weapon . | . . . . Special Melee Weapon . | . . . . Unidentified Prototypes . | . . . . Parts Lost 2 | . . . 2 Power 1 | . . . 1 Propulsion 1 | . . . 1 Utility . | . . . . Weapon . | . . . . Highest Loss Streak 2 | . . . 2 To Critical Strikes . | . . . . Average Backups 5 | 1 3 7 5 Power . | . 1 1 . Propulsion 1 | . . 1 2 Utility . | . . 1 . Weapon 2 | . 1 3 2 Tool/Special . | . . . . Unused Backups 6 | . . 4 2 Power . | . . . . Propulsion 3 | . . 1 2 Utility 1 | . . 1 . Weapon 2 | . . 2 . Tool/Special . | . . . . Average Slot Usage (%) 94 | . 83 91 99 Engine 7 | . 14 8 4 Core 6 | . . 5 9 Leg 28 | . 28 28 28 Storage 23 | . 12 20 28 Energy Gun 8 | . 14 14 3 Ballistic Gun 13 | . 14 13 13 Ballistic Cannon 3 | . . . 8 Special Weapon 1 | . . . 2 Peak Build Rating 13 | 5 6 10 13 Average Rating 8 | 3 5 8 10 On Entrance 5 | . 5 6 9 Naked Turns . | . . . . Heaviest Build 23 | 7 12 14 23 Greatest Support 20 | 20 20 20 20 Greatest Overweight (x) 1 | 1 . . 1 Average Overweight (x) . | . . . . Largest Inventory Capacity 8 | 5 8 8 8 Average Capacity 7 | 5 7 8 8 Most Carried 8 | 3 5 8 8 Average Carried 6 | 1 3 7 6 Final Capacity 8 | 5 8 8 8 Final Carried 8 | 3 5 8 4 Class Distribution -------------------- 100% | Mutant Dominant Class ---------------- Mutant | -10/Materials Mutant | -10/Mines Mutant | -10/Subcaves Resources | -11 -10 -10 -10 ----------- Run | Yrd Mat Min Sub Matter Collected 667 | 166 . 329 172 Remotely . | . . . . Salvage Created 295 | . 13 228 54 Parts 22 | . 2 15 5 Haulers Intercepted . | . . . . Recyclers Shooed . | . . . . Parts Field Recycled . | . . . . Retrieved Matter . | . . . . Parts Self-Destructed 7 | . . . 7 Prevented . | . . . . Kills | -11 -10 -10 -10 ------- Run | Yrd Mat Min Sub Combat Hostiles Destroyed 12 | . . 9 3 Guns 3 | . . 2 1 Cannons 2 | . . . 2 AOE 7 | . . 7 . Classes Destroyed 4 | . 1 2 1 Worker 1 | . 1 . . Swarmer 3 | . . 3 . Grunt 6 | . . 6 . Subdweller 3 | . . . 3 Best Kill Streak 5 | . 1 5 1 Combat Bots Only 5 | . . 5 1 Max Kills in Single Turn 3 | . 1 3 1 Gunslinging . | . . . . Exploded 3 | . . 3 . Melee . | . . . . Uniques/NPCs Destroyed . | . . . . Combat | -11 -10 -10 -10 -------- Run | Yrd Mat Min Sub Hostile Shots Fired 62 | . . 35 27 Missed 16 | . . 10 6 Hits 46 | . . 25 21 Projectile 46 | . . 25 21 Critical Strikes 1 | . . 1 . Damage Taken 843 | . . 366 477 Core 265 | . . 65 200 Absorbed by Shields . | . . . . Core Remaining (%) 100 | 100 . . . Volleys Fired 41 | . 2 18 21 Largest 2 | . 2 2 2 Hottest 100 | . 60 70 100 Shots Fired 78 | . 4 36 38 Gun 53 | . 4 31 18 Cannon 16 | . . . 16 Launcher 6 | . . 5 1 Special 3 | . . . 3 Kinetic 48 | . 2 13 33 Thermal 24 | . 2 18 4 Explosive 6 | . . 5 1 Electromagnetic . | . . . . Robot Hit Streak 10 | . 1 4 10 Robot Miss Streak 3 | . 2 3 3 Penetration Max . | . . . . Secondary Targets . | . . . . Shots Hit Robots 48 | . 1 23 24 Core Hits 26 | . 1 18 7 Critical Kills 2 | . . 1 1 Critical Parts Destroyed . | . . . . Critical Strikes 3 | . . 1 2 Destroy 3 | . . 1 2 Melee Attacks . | . . . . Impact . | . . . . Slashing . | . . . . Piercing . | . . . . Sneak Attacks . | . . . . Combat Hostiles . | . . . . Follow-up Attacks . | . . . . Damage Inflicted 915 | . 23 497 395 Guns 388 | . 23 205 160 Cannons 216 | . . . 216 Explosions 311 | . . 292 19 Melee . | . . . . Ramming . | . . . . Kinetic 437 | . . 72 365 Thermal 167 | . 23 133 11 Explosive 311 | . . 292 19 Electromagnetic . | . . . . Impact . | . . . . Slashing . | . . . . Piercing . | . . . . Highest Corruption . | . . . . Average Corruption . | . . . . Corruption Purged . | . . . . Corruption Blocked . | . . . . Overload Shots . | . . . . Overflow Damage . | . . . . Projectiles . | . . . . Explosions . | . . . . Melee . | . . . . Knockbacks 3 | . . . 3 Impact . | . . . . Kinetic 3 | . . . 3 Secondary . | . . . . Self-Inflicted Damage 34 | . . 34 . Shots 2 | . . 2 . Rammed . | . . . . Targets Rammed . | . . . . Kicked . | . . . . Crushed . | . . . . Highest Temperature 97 | . 20 97 . Average Temperature 38 | . 15 39 . Received Heat Transfer 309 | . . 213 96 Siege Activations . | . . . . Martial Activations . | . . . . Shielding Activations . | . . . . Robots Disrupted . | . . . . Combat Hostiles . | . . . . Robots Corrupted . | . . . . Combat Hostiles . | . . . . Parts Fried . | . . . . Impact Corruptions . | . . . . Robots Melted . | . . . . Combat Hostiles . | . . . . Parts Melted . | . . . . Heat Transferred 375 | . 50 300 25 Parts Sabotaged . | . . . . Parts Stolen . | . . . . Parts Stripped . | . . . . Power Chain Reactions . | . . . . Alert | -11 -10 -10 -10 ------- Run | Yrd Mat Min Sub Maximum Alert Level 1 | . . 1 . Low Security (%) 89 | 100 100 86 . Level 1 10 | . . 13 . Level 2 . | . . . . Level 3 . | . . . . Level 4 . | . . . . Level 5 . | . . . . High Security . | . . . . Max Security . | . . . . Peak Influence 238 | . 4 238 . Initial . | . . . . Average 87 | . . 114 . Influence Increases 501 | . 14 429 58 Destroy 0b10 Robot/C 300 | . . 260 40 Destroy 0b10 Robot/NC 5 | . 5 . . Destroy Leader 70 | . . 60 10 Allied During Kill 29 | . . 21 8 Successful Hack 9 | . 9 . . Disable Machine 30 | . . 30 . Destroy Structure 58 | . . 58 . Influence Decreases 501 | . 14 368 119 Entered New Map 33 | . . . 33 Time Decay 450 | . 14 368 68 Lost Ally 18 | . . . 18 Squads Dispatched 1 | . 1 . . Investigation . | . . . . Extermination . | . . . . Reinforcement 1 | . 1 . . Assault . | . . . . Garrison . | . . . . Intercept . | . . . . Searches Triggered . | . . . . Construction Impeded . | . . . . Haulers Reinforced . | . . . . Active Scanning Responses . | . . . . Cargo Convoy Interrupts . | . . . . Stealth | -11 -10 -10 -10 --------- Run | Yrd Mat Min Sub Distress Signals . | . . . . Communications Jammed . | . . . . Distress Signals . | . . . . Times Spotted 24 | . 3 12 9 Peak Tracking Total 5 | . 1 5 5 Tactical Retreats 1 | . . . 1 Traps | -11 -10 -10 -10 ------- Run | Yrd Mat Min Sub Traps Triggered . | . . . . Indirectly . | . . . . Trap Hack Attempts . | . . . . Triggered . | . . . . Disarmed . | . . . . Reprogrammed . | . . . . Reused . | . . . . Traps Extracted . | . . . . Installed 2 | . . . 2 Triggered . | . . . . Most Traps Carried 2 | . . 2 2 Machines | -11 -10 -10 -10 ---------- Run | Yrd Mat Min Sub Machines Disabled 2 | . . 2 . Max in Single Turn 2 | . . 2 . Machines Repaired . | . . . . Machines Dismantled . | . . . . Machines Sabotaged . | . . . . Overloaded Fab Kills . | . . . . Hacking | -11 -10 -10 -10 --------- Run | Yrd Mat Min Sub Machines Accessed 3 | . 3 . . Terminals 3 | . 3 . . Fabricators . | . . . . Repair Stations . | . . . . Recycling Units . | . . . . Scanalyzers . | . . . . Garrison Access . | . . . . Total Hacks 7 | . 7 . . Successful 4 | . 4 . . Failed 3 | . 3 . . Catastrophic . | . . . . Database Lockouts . | . . . . Manual . | . . . . Terminals 7 | . 7 . . Fabricators . | . . . . Repair Stations . | . . . . Recycling Units . | . . . . Scanalyzers . | . . . . Garrison Access . | . . . . Terminal Hacks 4 | . 4 . . Prototype ID Bank 1 | . 1 . . Dispatch Records 1 | . 1 . . Zone Layout 2 | . 2 . . Fabricator Hacks . | . . . . Repair Station Hacks . | . . . . Recycling Unit Hacks . | . . . . Scanalyzer . | . . . . Garrison Access Hacks . | . . . . Unauthorized Hacks . | . . . . Terminals . | . . . . Fabricators . | . . . . Repair Stations . | . . . . Recycling Units . | . . . . Scanalyzers . | . . . . Garrison Access . | . . . . Data Cores Recovered . | . . . . Used . | . . . . Hacking Detections 2 | . 2 . . Full Trace Events . | . . . . Feedback Events . | . . . . Feedback Blocked . | . . . . Robot Schematics Acquired . | . . . . Robots Built . | . . . . Authchips . | . . . . Time . | . . . . Total Robot Build Rating . | . . . . Part Schematics Acquired . | . . . . Parts Built . | . . . . Authchips . | . . . . Time . | . . . . Total Part Build Rating . | . . . . Parts Repaired . | . . . . Time . | . . . . Parts Recycled . | . . . . Recycled Matter . | . . . . Retrieved Matter . | . . . . Retrieved Components . | . . . . Parts Scanalyzed . | . . . . Part Schematics Acquired . | . . . . Parts Damaged . | . . . . Bothacking | -11 -10 -10 -10 ------------ Run | Yrd Mat Min Sub Used RIF Installer . | . . . . Robots Hacked . | . . . . Non-combat . | . . . . Combat . | . . . . Robot Hacks Applied . | . . . . Relay Couplers Released . | . . . . Fabnet Peak Effective % . | . . . . Robots Rewired . | . . . . Allies Hacked . | . . . . Hacks Repelled . | . . . . Allies | -11 -10 -10 -10 -------- Run | Yrd Mat Min Sub Total Allies 4 | . . 4 . Largest Group 4 | . . 4 3 Highest-Rated Group 71 | . . 71 40 Highest-Rated Ally 31 | . . 31 16 Total Orders . | . . . . Ally Attacks 28 | . . 11 17 Total Damage 333 | . . 157 176 Kills 10 | . . 4 6 Allies Corrupted . | . . . . Allies Melted . | . . . . Intel | -11 -10 -10 -10 ------- Run | Yrd Mat Min Sub Active Infowar (turns) . | . . . . Robot Analysis Total . | . . . . Derelict Logs Recovered 1 | . . 1 . Drone Launches . | . . . . Drone Recoveries . | . . . . Exploration | -11 -10 -10 -10 ------------- Run | Yrd Mat Min Sub Turns Passed 2027 | 51 212 854 910 Spaces Moved 1269 | 37 169 575 488 Core 6 | 6 . . . Treads . | . . . . Legs 1263 | 31 169 575 488 Wheels . | . . . . Hover . | . . . . Flight . | . . . . Fastest Speed 50 | 50 120 120 120 Average Speed 130 | 112 120 120 148 Slowest Speed 190 | 120 120 120 190 Overloaded Moves . | . . . . Propulsion Burnouts . | . . . . Robots Hopped . | . . . . Potential Cave-ins . | . . . . Cave-ins Triggered . | . . . . Exploration Rate (%) 40 | 3 38 91 29 Regions Visited 3 Branch Regions 2 Pre-discovered Areas 1 | . . 1 . Known Exits Taken . | . . . . Unknown Exits Taken 3 | 1 1 1 . Scrap Searched 1 | . . 1 . Spaces Dug . | . . . . Terrain Destroyed 76 | . . 65 11 Melee . | . . . . Projectile 2 | . . . 2 AOE 74 | . . 65 9 Terrain Rammed . | . . . . Walls Destroyed . | . . . . Machines Disabled . | . . . . Actions | -11 -10 -10 -10 --------- Run | Yrd Mat Min Sub Total 1559 | 44 174 709 632 Wait 197 | . . 88 109 Move 1266 | 36 168 574 488 Hop . | . . . . Pick Up 18 | 3 3 12 . Fast Attach 8 | 5 . . 3 Attach 7 | . 1 4 2 Detach 1 | . . 1 . Swap 5 | . . 3 2 Drop 14 | . . 9 5 Fire 41 | . 2 18 21 Melee . | . . . . Ram . | . . . . Kick . | . . . . Crush . | . . . . Escape Stasis . | . . . . Rewire . | . . . . Trap 2 | . . . 2 Miscellaneous . | . . . . Route ------- -11/Scrapyard -10/Materials (discovered 2 exits: [*Min x2]) -10/Mines (discovered 3 exits: [*Mat x2] / [*Sub]) -10/Subcaves (discovered 1 exit: [*Mat]) History --------- Turn | Location | Event 2 | -11/Scrapyard | Met Revision 17 9 | -11/Scrapyard | Discovered new exit (range 16) 52 | -11/Scrapyard | Entered Materials 52 | -10/Materials | Discovered new exit (range 14) 111 | -10/Materials | Discovered new exit (range 17) 264 | -10/Materials | Entered Mines 300 | -10/Mines | Build established: Mutant 564 | -10/Mines | Discovered new exit (range 8) 567 | -10/Mines | Received a Mining Laser from a helpful Derelict 626 | -10/Mines | Assisted by bots powering up and referring to "LRC-V3" 707 | -10/Mines | Received a Rocket Launcher from a helpful Derelict 789 | -10/Mines | Discovered new exit (range 7) 840 | -10/Mines | Learned location of Zion (-7) 981 | -10/Mines | Found a hidden stash of uninstalled traps 1103 | -10/Mines | Discovered new exit (range 10) 1118 | -10/Mines | Entered Subcaves 1118 | -10/Subcaves | Accompanied by 3 allies 1119 | -10/Subcaves | Shifting Twisted Machinery released Shrapnel Trap 1119 | -10/Subcaves | Approached by a straggling Scientist 1302 | -10/Subcaves | Shifting Twisted Machinery released Slug Cannon 1318 | -10/Subcaves | Shifting Twisted Machinery released Sub. Beam Cannon 1468 | -10/Subcaves | Shifting Twisted Machinery released Sub. Monowheel 1478 | -10/Subcaves | A Subdweller sparked back to life 1478 | -10/Subcaves | A Subdweller sparked back to life 1497 | -10/Subcaves | Core integrity fell below 50% 1517 | -10/Subcaves | Lost 3 allies 1704 | -10/Subcaves | Core integrity fell below 20% 1756 | -10/Subcaves | Shifting Twisted Machinery released Piercing Trap 1950 | -10/Subcaves | Discovered new exit (range 12) 2028 | -10/Subcaves | Destroyed by T0-RV7(R) with Subdweller Laser Last Messages --------------- 01558_ Dropped Lgt. Assault Rifle. 01561_ Acquired Sub. Machine Gun. 01567_ Acquired 13 matter. 01570_ Acquired 11 matter. 01701_ Lgt. Nuclear Core destroyed. 01707_ CH-5CH(R) knocked back. 01709_ CH-5CH(R) affixes Scrap Shield Fragment to Scrap Shield. 01720_ Aluminum Leg destroyed. 01722_ CH-5CH(R) destroyed. 01727_ Acquired Aluminum Leg. 01730_ Acquired 15 matter. 01743_ Acquired 53 matter. 01747_ Acquired 14 matter. Piercing Trap falls loose from the Twisted Machinery. 01808_ Dropped Heavy Explosive Trap. 01809_ Installed Heavy Explosive Trap. 01811_ Dropped Heavy Explosive Trap. 01812_ Installed Heavy Explosive Trap. 01950_ EXIT=FOUND 02024_ The unstable cave ceiling collapses. Map ----- +----------------------------------------------------+ | ?????????????????????????????????????????????????? | | ?????????????????????????????????????????????????? | | ?????????????????????????????????????????????????? | | ?????????????????????????????????????????????????? | | ?????????????????????????????????????????????????? | | ?????????????????????????????????????????????????? | | ?????????????????????????????????????????????????? | | ?????????????????????????????????????????????????? | | ??????????????????????????????# ????????????????? | | ?????????????????????????????? ????????????????? | | ?????????????????????????????? ???????????????? | | ?????????????????????????????? ???????????????? | | ?????????????????????????????? ???????????????? | | ?????????????????????????????? ???????????????? | | ??????????????????????????????? "???????????????? | | ??????????????????????????????? ???????????????? | | ???????????????????????####???? #???????????????? | | ??????????????????????##" "???? #???????????????? | | ??????????????????????# #???? ###?????????????? | | ??????????????????????# "#???? ??????????????? | | ???????????????#####???#""##???# ##?????????????? | | ???????????????# "??#" ##??# #?????????????? | | ????????????????# ### " #### #?????????????? | | ???????????????????# " #?????????????? | | ??????????????????## R #?????????????? | | ??????????????????# @ ##?????????????? | | ??????????????????## ##??????????????? | | ???????????????????##"< " " ###???????????????? | | ????????????????????## ####?????????????????? | | ?????????????????????## #????????????????????? | | ?????????????????????# " ##???????????????????? | | ?????????????????????### #???????????????????? | | ??????????????????????# #???????????????????? | | ??????????????????????### ##???????????????????? | | ??????????????????????## #????????????????????? | | ??????????????????????# ##???#???????????????? | | ??????######?????????## ### # ##????????????? | | ?###?## ?????????# #????????????? | | ## ### ?????????## #???????????? | | ## ??????????#### # ## #???????????? | | ### ?????????????## ###?? #???????????? | | ### #????????####?## #?????? #???????????? | | ## ####????## ### ##??????????????????? | | ##??# ###### ### #??????????????????? | | #??# # ## ##??????????????????? | | %##### ### #???????????????????? | | # ##?### #??????????????????? | | #" # #####????## ???????????????? | | #### ###?????????## #????????????? | | ##?## ##?????????????#### #????????????? | +----------------------------------------------------+ Best States ------------- Heat Dissipation 25 Energy Generation 14 Energy Capacity 250 Matter Stores 400 Matter Capacity 400 Sight Range 16 Terrain Scan Density 10 Evasion (%) 55 Item Schematics ----------------- None Robot Schematics ------------------ None Fabricated ------------ Nothing Repaired ---------- Nothing Alien Tech Used ----------------- None Achievements -------------- None Challenges ------------ None Game ------ Seed ChromionCompanionMace Manual? 0 Play Time 00:25:18 Cumulative 6.5 hours Start 2025.05.13 @ 15:11:06 End 2025.05.13 @ 16:02:05 Sessions 1 Manual Loads 0 Difficulty Rogue Special Mode None Game No. 12 Rogue 12 Adventurer 0 Explorer 0 Win Type - Total 0 Types 0/0/0/0/0/0/0/0/0/0 Lore% 5 Gallery% 11 Achievement% 11 Wizard Run 0 Options --------- Layout 0 ASCII 0 Keyboard 0 Movement Arrows Keybinds 0 Fullscreen 1 Font 18/Terminus Map View 38x25 Zoom Use 98% Tactical HUD 1 Map Filters NONE Filters NONE Steam 1 RUN: b74f6eb1-4459-4855-b84e-285b085f5dbb